Cogmind - Beta 14 @@@ ROGUE MODE // 2024.09.01 @ 14:40:54 Player: MOPO3 Result: Self-destructed Performance ------------- Evolutions (2) 1000 Regions Visited (5) 1000 Robots Destroyed (76) 380 Value Destroyed (1489) 1489 Prototype IDs (0) 0 Alien Tech Used (0) 0 Bonus (0) 0 TOTAL SCORE: 3869 Bonus ------- None Cogmind --------- Core Integrity 462/550 Matter 149/300 Energy 95/100 System Corruption 0% Temperature Cool (31) Movement Flying (114) Ox1 Location -8/Materials Parts ------- > --- POWER (1) -------- (None) > --- PROPULSION (4) --- Flight Unit Flight Unit Flight Unit > --- UTILITY (4) ------ Medium Storage Unit Sensor Array Signal Interpreter Makeshift Cloaking Device > --- WEAPON (2) ------- Grenade Launcher Missile Launcher > --- INVENTORY (10) --- Light Ion Engine Flight Unit High-capacity Storage Unit Utility Shielding System Shield Makeshift System Shield Grenade Launcher Grenade Launcher Great Maul Peak State ------------ > --- POWER ------------ Light Nuclear Core > --- PROPULSION ------- Flight Unit Flight Unit Flight Unit Flight Unit > --- UTILITY ---------- Medium Storage Unit Sensor Array Signal Interpreter Makeshift Cloaking Device > --- WEAPON ----------- Missile Launcher Great Maul > --- INVENTORY -------- Light Ion Engine Flight Unit Flight Unit High-capacity Storage Unit Utility Shielding Makeshift System Shield Grenade Launcher Grenade Launcher Grenade Launcher [Rating: 22] Favorites ----------- Power Light Ion Engine Engine Light Ion Engine Power Core Light Nuclear Core Propulsion Light Treads Treads Light Treads Flight Unit Flight Unit Utility High-capacity Storage Unit Device Sensor Array Storage High-capacity Storage Unit Processor Signal Interpreter Protection Utility Shielding Weapon Grenade Launcher Energy Gun Medium Laser Ballistic Gun Light Assault Rifle Launcher Grenade Launcher Impact Weapon Great Maul Build | -11 -10 -10 -10 -9 -8 ------- Run | Yrd Mat Min Exi Min Mat Slots Evolved 4 | . . . . . 4 Power . | . . . . . . Propulsion 2 | . . . . . 2 Utility 2 | . . . . . 2 Weapon . | . . . . . . Parts Attached 51 | 6 18 4 2 2 19 Power 10 | 1 4 3 . 1 1 Engine 8 | 1 4 2 . 1 . Core 2 | . . 1 . . 1 Reactor . | . . . . . . Propulsion 13 | 2 5 1 . . 5 Treads 8 | 2 5 1 . . . Leg . | . . . . . . Wheel . | . . . . . . Hover . | . . . . . . Flight 5 | . . . . . 5 Utility 9 | 1 3 . . . 5 Device 2 | . . . . . 2 Storage 4 | 1 1 . . . 2 Processor 1 | . . . . . 1 Hackware . | . . . . . . Protection 2 | . 2 . . . . Artifact . | . . . . . . Weapon 19 | 2 6 . 2 1 8 Energy Gun 3 | 1 2 . . . . Energy Cannon . | . . . . . . Ballistic Gun 3 | 1 2 . . . . Ballistic Cannon . | . . . . . . Launcher 10 | . 2 . 2 1 5 Special Weapon . | . . . . . . Impact Weapon 3 | . . . . . 3 Slashing Weapon . | . . . . . . Piercing Weapon . | . . . . . . Special Melee Weapon . | . . . . . . Unidentified Prototypes . | . . . . . . Parts Lost 6 | . 2 1 . . 3 Power 2 | . . 1 . . 1 Propulsion 3 | . 1 . . . 2 Utility . | . . . . . . Weapon 1 | . 1 . . . . Highest Loss Streak 2 | . 2 1 . . 2 To Critical Strikes . | . . . . . . Average Slot Usage (%) 97 | . 95 100 99 100 97 Engine 12 | . 13 12 14 14 . Core 1 | . . 1 . . 8 Treads 24 | . 27 28 28 28 1 Flight 4 | . . . . . 33 Device 2 | . . . . . 16 Storage 13 | . 14 14 14 14 9 Processor 1 | . . . . . 8 Protection 11 | . 12 14 14 14 . Energy Gun 4 | . 10 . . . . Ballistic Gun 4 | . 10 . . . . Launcher 16 | . 6 28 27 28 13 Peak Build Rating 22 | 6 10 12 10 10 22 Average Rating 10 | 4 8 10 9 10 19 On Entrance 7 | . 6 10 10 10 10 Naked Turns . | . . . . . . Heaviest Build 53 | 11 50 52 52 52 53 Greatest Support 40 | 40 40 40 40 40 40 Greatest Overweight (x) 13 | . 13 1 1 1 3 Average Overweight (x) . | . . 1 1 1 1 Largest Inventory Capacity 20 | 8 20 20 20 20 20 Average Capacity 18 | 6 18 20 20 20 11 Most Carried 20 | 2 20 20 20 20 20 Average Carried 15 | 1 14 19 19 19 9 Final Capacity 20 | 8 20 20 20 20 10 Final Carried 20 | 2 20 20 20 20 9 Class Distribution -------------------- 88% | Mutant 11% | Scavenger-Mutant Dominant Class ---------------- Mutant | -10/Materials Mutant | -10/Mines Mutant | -10/Exiles Mutant | -9/Mines Scavenger-Mutant | -8/Materials Resources | -11 -10 -10 -10 -9 -8 ----------- Run | Yrd Mat Min Exi Min Mat Matter Collected 1378 | 225 479 202 28 175 269 Remotely . | . . . . . . Salvage Created 1753 | . 906 196 28 194 429 Parts 127 | . 70 14 . 20 23 Haulers Intercepted 3 | . 2 . . . 1 Recyclers Shooed 7 | . 5 . . 1 1 Parts Field Recycled . | . . . . . . Retrieved Matter . | . . . . . . Parts Self-Destructed . | . . . . . . Prevented . | . . . . . . Kills | -11 -10 -10 -10 -9 -8 ------- Run | Yrd Mat Min Exi Min Mat Combat Hostiles Destroyed 49 | . 26 4 . 11 8 Guns 19 | . 19 . . . . AOE 29 | . 6 4 . 11 8 Classes Destroyed 11 | . 8 2 . . 1 Worker 3 | . 2 . . . 1 Builder 8 | . . 2 . . 6 Tunneler 4 | . 1 1 . 2 . Hauler 3 | . 2 . . . 1 Recycler 5 | . 1 1 . 2 1 Operator 1 | . . . . . 1 Watcher 3 | . 2 . . . 1 Swarmer 23 | . 12 . . 11 . Grunt 21 | . 12 2 . . 7 Sentry 3 | . . 2 . . 1 Subdweller 2 | . 2 . . . . Best Kill Streak 12 | . 6 6 . 4 12 Combat Bots Only 7 | . 6 2 . 4 7 Max Kills in Single Turn 5 | . 3 2 . 3 5 Gunslinging . | . . . . . . Exploded 4 | . 3 1 . 3 4 Melee . | . . . . . . Uniques/NPCs Destroyed . | . . . . . . Combat | -11 -10 -10 -10 -9 -8 -------- Run | Yrd Mat Min Exi Min Mat Hostile Shots Fired 151 | . 98 14 . 16 23 Missed 47 | . 29 6 . 5 7 Damage Taken 1468 | . 755 167 26 245 275 Core 210 | . 74 31 . 17 88 Absorbed by Shields . | . . . . . . Redirected to Shielding 15 | . 12 . . 3 . Regen/Repaired (Parts) 34 | . 34 . . . . Core Remaining (%) 75 | 100 . . . 51 . Volleys Fired 127 | . 101 10 . 6 10 Largest 2 | . 2 2 . 2 2 Hottest 90 | . 90 60 . 60 66 Shots Fired 245 | . 198 16 1 13 17 Gun 190 | . 190 . . . . Cannon . | . . . . . . Launcher 55 | . 8 16 1 13 17 Special . | . . . . . . Kinetic 91 | . 91 . . . . Thermal 99 | . 99 . . . . Explosive 55 | . 8 16 1 13 17 Electromagnetic . | . . . . . . Robot Hit Streak 16 | . 9 10 11 16 7 Robot Miss Streak 4 | . 4 . . 2 2 Penetration Max . | . . . . . . Secondary Targets 1 | . 1 . . . . Max Gunslinging Chain 1 | . 1 . . . . Shots Hit Robots 151 | . 119 10 1 5 16 Core Hits 121 | . 63 12 4 14 28 Critical Kills . | . . . . . . Critical Parts Destroyed 4 | . . . . . 4 Critical Strikes 12 | . 8 . . . 4 Burn 8 | . 8 . . . . Smash 4 | . . . . . 4 Melee Attacks 16 | . . . . . 16 Impact 16 | . . . . . 16 Slashing . | . . . . . . Piercing . | . . . . . . Sneak Attacks 8 | . . . . . 8 Combat Hostiles . | . . . . . . Follow-up Attacks . | . . . . . . Damage Inflicted 5211 | . 1632 460 152 744 2223 Guns 1247 | . 1247 . . . . Cannons . | . . . . . . Explosions 3106 | . 359 460 152 729 1406 Melee 810 | . . . . . 810 Ramming 48 | . 26 . . 15 7 Kinetic 449 | . 449 . . . . Thermal 798 | . 798 . . . . Explosive 3106 | . 359 460 152 729 1406 Electromagnetic . | . . . . . . Impact 810 | . . . . . 810 Slashing . | . . . . . . Piercing . | . . . . . . Highest Corruption 3 | . 3 3 3 3 . Average Corruption 2 | . 2 3 3 3 . Corruption Purged . | . . . . . . Corruption Blocked . | . . . . . . Effects 49 | . 4 12 25 8 . Message Errors 9 | . 1 3 4 1 . Matter Fused 12 | . . 3 7 2 . Heat Flow Errors 8 | . 2 . 6 . . Energy Discharges 10 | . 1 2 4 3 . Parts Rejected 1 | . . . . 1 . Parts Fused 1 | . . . 1 . . Data Loss (minor) 2 | . . 1 1 . . Data Loss (major) 2 | . . 1 1 . . Misfires 3 | . . 1 1 1 . Alerts 1 | . . 1 . . . Overload Shots . | . . . . . . Overflow Damage 693 | . . 12 . 5 676 Projectiles . | . . . . . . Explosions 63 | . . 12 . 5 46 Melee 630 | . . . . . 630 Knockbacks 6 | . . . . . 6 Impact 6 | . . . . . 6 Kinetic . | . . . . . . Secondary . | . . . . . . Self-Inflicted Damage 305 | . 32 59 27 167 20 Shots 14 | . 2 4 1 6 1 Rammed 4 | . 2 . . 1 1 Targets Rammed 7 | . 4 . . 2 1 Kicked . | . . . . . . Crushed 3 | . 2 . . 1 . Highest Temperature 242 | . 242 40 242 . 60 Average Temperature 63 | . 61 22 105 . 28 Received Heat Transfer 420 | . 255 57 . . 108 Siege Activations . | . . . . . . Robots Corrupted 6 | . . . . . 6 Combat Hostiles . | . . . . . . Parts Fried 4 | . . . . . 4 Impact Corruptions 24 | . . . . . 24 Robots Melted 1 | . 1 . . . . Combat Hostiles 1 | . 1 . . . . Parts Melted 6 | . 6 . . . . Heat Transferred 2924 | . 2924 . . . . Parts Sabotaged . | . . . . . . Parts Stolen . | . . . . . . Parts Stripped . | . . . . . . Power Chain Reactions . | . . . . . . Alert | -11 -10 -10 -10 -9 -8 ------- Run | Yrd Mat Min Exi Min Mat Peak Influence 382 | . 373 317 . 382 373 Initial 145 | . . 145 . . 70 Average 136 | . 132 160 . 247 84 Maximum Alert Level 1 | . 1 1 . 1 1 Low Security (%) 82 | 100 86 84 . 34 93 Level 1 17 | . 13 15 . 65 6 Level 2 . | . . . . . . Level 3 . | . . . . . . Level 4 . | . . . . . . Level 5 . | . . . . . . High Security . | . . . . . . Max Security . | . . . . . . Squads Dispatched 6 | . 4 . . . 2 Investigation 2 | . 2 . . . . Extermination . | . . . . . . Reinforcement 4 | . 2 . . . 2 Assault . | . . . . . . Garrison . | . . . . . . Intercept . | . . . . . . Searches Triggered . | . . . . . . Construction Impeded 1 | . . . . . 1 Haulers Reinforced . | . . . . . . Active Scanning Responses . | . . . . . . Cargo Convoy Interrupts . | . . . . . . Stealth | -11 -10 -10 -10 -9 -8 --------- Run | Yrd Mat Min Exi Min Mat Distress Signals 4 | . 1 . . 1 2 Communications Jammed . | . . . . . . Distress Signals . | . . . . . . Times Spotted 80 | . 52 4 . 9 15 Peak Tracking Total 9 | . 4 2 . 4 9 Tactical Retreats 4 | . 3 . . . 1 Traps | -11 -10 -10 -10 -9 -8 ------- Run | Yrd Mat Min Exi Min Mat Traps Triggered 4 | . 4 . . . . Indirectly . | . . . . . . Trap Hack Attempts . | . . . . . . Triggered . | . . . . . . Disarmed . | . . . . . . Reprogrammed . | . . . . . . Reused . | . . . . . . Traps Extracted . | . . . . . . Installed . | . . . . . . Triggered . | . . . . . . Machines | -11 -10 -10 -10 -9 -8 ---------- Run | Yrd Mat Min Exi Min Mat Machines Disabled 3 | . 2 . . 1 . Max in Single Turn 1 | . 1 . . 1 . Machines Repaired . | . . . . . . Machines Dismantled . | . . . . . . Machines Sabotaged . | . . . . . . Overloaded Fab Kills . | . . . . . . Hacking | -11 -10 -10 -10 -9 -8 --------- Run | Yrd Mat Min Exi Min Mat Machines Accessed 14 | . 9 . 4 1 . Terminals 7 | . 6 . . 1 . Fabricators . | . . . . . . Repair Stations 1 | . 1 . . . . Recycling Units 2 | . 2 . . . . Scanalyzers . | . . . . . . Garrison Access . | . . . . . . Total Hacks 82 | . 30 . 49 3 . Successful 63 | . 13 . 49 1 . Failed 19 | . 17 . . 2 . Catastrophic 3 | . 2 . . 1 . Database Lockouts . | . . . . . . Manual 25 | . 21 . 1 3 . Terminals 21 | . 18 . . 3 . Fabricators . | . . . . . . Repair Stations 3 | . 3 . . . . Recycling Units 9 | . 9 . . . . Scanalyzers . | . . . . . . Garrison Access . | . . . . . . Terminal Hacks 51 | . 2 . 49 . . Record 49 | . . . 49 . . Branch Access Points 1 | . 1 . . . . Terminal Index 1 | . 1 . . . . Fabricator Hacks . | . . . . . . Repair Station Hacks 2 | . 2 . . . . Scan Component 1 | . 1 . . . . Repair 1 | . 1 . . . . Recycling Unit Hacks 4 | . 4 . . . . Retrieve Components 4 | . 4 . . . . Scanalyzer . | . . . . . . Garrison Access Hacks . | . . . . . . Unauthorized Hacks 6 | . 5 . . 1 . Terminals 6 | . 5 . . 1 . Botnet 6 | . 5 . . 1 . Fabricators . | . . . . . . Repair Stations . | . . . . . . Recycling Units . | . . . . . . Scanalyzers . | . . . . . . Garrison Access . | . . . . . . Data Cores Recovered . | . . . . . . Used . | . . . . . . Hacking Detections 8 | . 7 . . 1 . Full Trace Events 6 | . 6 . . . . Feedback Events 1 | . 1 . . . . Corruption 1 | . 1 . . . . Feedback Blocked . | . . . . . . Robot Schematics Acquired . | . . . . . . Robots Built . | . . . . . . Authchips . | . . . . . . Time . | . . . . . . Total Robot Build Rating . | . . . . . . Part Schematics Acquired . | . . . . . . Parts Built . | . . . . . . Authchips . | . . . . . . Time . | . . . . . . Total Part Build Rating . | . . . . . . Parts Repaired 1 | . 1 . . . . Time 26 | . 26 . . . . Parts Recycled . | . . . . . . Recycled Matter . | . . . . . . Retrieved Matter . | . . . . . . Retrieved Components 19 | . 19 . . . . Parts Scanalyzed . | . . . . . . Part Schematics Acquired . | . . . . . . Parts Damaged . | . . . . . . Bothacking | -11 -10 -10 -10 -9 -8 ------------ Run | Yrd Mat Min Exi Min Mat Used RIF Installer . | . . . . . . Robots Hacked . | . . . . . . Non-combat . | . . . . . . Combat . | . . . . . . Robot Hacks Applied . | . . . . . . Relay Couplers Released . | . . . . . . Fabnet Peak Effective % . | . . . . . . Robots Rewired . | . . . . . . Allies Hacked . | . . . . . . Hacks Repelled . | . . . . . . Allies | -11 -10 -10 -10 -9 -8 -------- Run | Yrd Mat Min Exi Min Mat Total Allies . | . . . . . . Largest Group . | . . . . . . Highest-Rated Group . | . . . . . . Highest-Rated Ally . | . . . . . . Total Orders . | . . . . . . Ally Attacks . | . . . . . . Total Damage . | . . . . . . Kills . | . . . . . . Allies Corrupted . | . . . . . . Allies Melted . | . . . . . . Intel | -11 -10 -10 -10 -9 -8 ------- Run | Yrd Mat Min Exi Min Mat Robot Analysis Total . | . . . . . . Derelict Logs Recovered 3 | . . 2 . 1 . Drone Launches . | . . . . . . Drone Recoveries . | . . . . . . Exploration | -11 -10 -10 -10 -9 -8 ------------- Run | Yrd Mat Min Exi Min Mat Turns Passed 6291 | 87 2773 539 1700 435 757 Spaces Moved 2503 | 48 978 203 676 163 435 Core 10 | 1 9 . . . . Treads 2076 | 47 969 203 676 163 18 Legs . | . . . . . . Wheels . | . . . . . . Hover . | . . . . . . Flight 417 | . . . . . 417 Fastest Speed 50 | 50 160 250 250 250 111 Average Speed 221 | 157 237 250 250 250 121 Slowest Speed 700 | 160 700 250 250 250 271 Overloaded Moves . | . . . . . . Propulsion Burnouts . | . . . . . . Robots Hopped . | . . . . . . Cave-ins Triggered . | . . . . . . Exploration Rate (%) 50 | 4 96 55 92 34 19 Regions Visited 5 Branch Regions 3 Pre-discovered Areas 3 | . . 1 1 1 . Known Exits Taken 2 | . 1 1 . . . Unknown Exits Taken 3 | 1 . . 1 1 . Scrap Searched 1 | . . . . 1 . Spaces Dug 8 | . . . . . 8 Terrain Destroyed 333 | . 44 71 5 106 107 Melee 8 | . . . . . 8 Projectile . | . . . . . . AOE 325 | . 44 71 5 106 99 Terrain Rammed . | . . . . . . Walls Destroyed . | . . . . . . Machines Disabled . | . . . . . . Actions | -11 -10 -10 -10 -9 -8 --------- Run | Yrd Mat Min Exi Min Mat Total 3000 | 57 1248 221 688 177 609 Wait 220 | . 105 . . . 115 Move 2498 | 47 977 202 675 162 435 Hop . | . . . . . . Pick Up 45 | 3 32 2 2 3 3 Fast Attach 10 | 6 4 . . . . Attach 17 | . 9 1 1 1 5 Detach . | . . . . . . Swap 24 | . 5 3 1 1 14 Drop 29 | 1 11 3 2 2 10 Fire 127 | . 101 10 . 6 10 Melee 16 | . . . . . 16 Ram 1 | . . . . . 1 Kick . | . . . . . . Crush 6 | . 4 . . 2 . Escape Stasis . | . . . . . . Rewire 7 | . . . 7 . . Trap . | . . . . . . Miscellaneous . | . . . . . . Route ------- -11/Scrapyard -10/Materials (discovered 5 exits: [*Mat x3] / *Min / [*Sub]) -10/Mines (discovered 2 exits: [*Mat] / *Exi) -10/Exiles -9/Mines -8/Materials (discovered 1 exit: Sto) History --------- Turn | Location | Event 19 | -11/Scrapyard | Discovered new exit (range 15) 88 | -11/Scrapyard | Entered Materials 267 | -10/Materials | Repaired Lgt. Ion Engine 307 | -10/Materials | Build established: Mutant 688 | -10/Materials | Derelicts attacked the area 848 | -10/Materials | Discovered new exit (range 9) 1177 | -10/Materials | Discovered new exit (range 9) 1421 | -10/Materials | Discovered new exit (range 16) 1624 | -10/Materials | Discovered new exit (range 4) 2081 | -10/Materials | Discovered new exit (range 5) 2656 | -10/Materials | Identified exit to Mines 2861 | -10/Materials | Entered Mines 2881 | -10/Mines | Discovered new exit (range 15) 2908 | -10/Mines | Met a Derelict bent on vengeance 2954 | -10/Mines | Learned location of Zion (-7) 2981 | -10/Mines | Found a hidden stash of uninstalled traps 3024 | -10/Mines | Identified exit to Exiles 3390 | -10/Mines | Deemed a non-threat by the Exiles lab entrance 3400 | -10/Mines | Entered Exiles 3400 | -10/Exiles | Found Exiles lab destroyed 5043 | -10/Exiles | Discovered new exit (range 14) 5100 | -10/Exiles | Entered Mines 5495 | -9/Mines | Discovered new exit (range 5) 5498 | -9/Mines | Learned location of Storage (-8) 5535 | -9/Mines | Entered Materials 5535 | -8/Materials | Evolved 4 slots: Propulsion x2, Utility x2 5536 | -8/Materials | Identified exit to Storage 5881 | -8/Materials | Build established: Scavenger-Mutant 6275 | -8/Materials | Destroyed 7 combat bots 6292 | -8/Materials | Self-destructed Last Messages --------------- G-50 Soldier destroyed. G-47 Trooper destroyed. K-01 Serf collects debris. The unstable cave ceiling collapses. Particle Gun crushed. Flight Unit destroyed. G-47 Trooper destroyed. Destroyed Imp. Hover Unit. K-01 Serf collects debris. The unstable cave ceiling collapses. K-01 Serf collects debris. The unstable cave ceiling collapses. Acquired 28 matter. Acquired 13 matter. K-01 Serf collects debris. The unstable cave ceiling collapses. K-01 Serf collects debris. The unstable cave ceiling collapses. Flight Unit destroyed. Lgt. Nuclear Core destroyed. Map ----- +----------------------------------------------------+ | ?????????????????????????????????????????????????? | | ?????????????????????????????????????????????? ?? | | ?????????????????????????????????????????????? ?? | | ?????????????????????????????????????????????# ?? | | ????????????????????????????????????????????? ?? | | ????????????????????????????????????????????? ? | | ????????????????????????????????????????????? | | ????????????????????????????????????????????? | | ????????????????????????????????????????????? # | | ????????????????????????????????????????????? | | ????????????????????????????????????????????? ! | | ?????????????????????????????????? ?????? | | ?????????????????????????????????? ?????? | | ?????????????????????????????????? ?????? | | ?????????????????????????????????? ?????? | | ??????????????????????????????????# #??????# + | | ??????????????????????????????""??# #??????# # | | ?????????????????????????????""" ?# #??????# # | | ?????????????????????????????""" ?# #??????# # | | ???????????????????????????? ?# #??????# # | | ???????????????????????????? """ ## #??????# # | | ??????????????????????????? """ ## #?????## ## | | ??????????????????????????? """??# #???#### # | | ??????????????????####???? ???## #### = ## | | ????????????????### ## # #### = | | ?????????? @ [ [ | | ?????????? T | | ???????????? g t a | | ?????????????##+### ## ## # # | | ??????????????x???###a##?? ######## | | ??????????????????? ???? # # ##??????####! | | ??????????????????# ????? ###### #??????????##!! | | ??????????????????# ?????? #????# #???????????### | | ??????????????????#???????" #????# #?????????????? | | ??????????????????????????? #????# #?????????????? | | ??????????????????????????? #????# #?????????????? | | ??????????????????????????? #????# #?????????????? | | ??????????????????????????? #????? ??????????????? | | ???????????????????????????##????? ??????????????? | | ?????????????????????????????????? ??????????????? | | ?????????????????????????????????? ????????####### | | ?????????????????????????????????? ????????# # | | ?????????????????????????????????? ????????### " | | ?????????????????????????????????? ??????????#""" | | ?????????????????????????????????????????????#""" | | ?????????????????????????????????????????????#""" | | ?????????????????????????????????????????????# "" | | ?????????????????????????????????????????????#""" | | ?????????????????????????????????????????????#"" | | ?????????????????????????????????????????????#"" | +----------------------------------------------------+ Best States ------------- Heat Dissipation 31 Energy Generation 15 Energy Capacity 250 Matter Stores 300 Matter Capacity 300 Sight Range 16 Robot Scan Range 14 Terrain Scan Density 10 Cloak Strength 3 Utility Shielding 33 Evasion (%) 40 Recoil Reduction 2 Item Schematics ----------------- None Robot Schematics ------------------ None Fabricated ------------ Nothing Alien Tech Used ----------------- None Achievements -------------- None Challenges ------------ None Game ------ Seed ConcussivePowerFlightbrick Manual? 0 Play Time 01:04:14 Cumulative 27.6 hours Start 2024.09.01 @ 07:29:25 End 2024.09.01 @ 14:40:54 Sessions 1 Manual Loads 0 Difficulty Rogue Special Mode None Game No. 41 Rogue 41 Adventurer 0 Explorer 0 Win Type - Total 0 Types 0/0/0/0/0/0/0/0/0 Lore% 14 Gallery% 27 Achievement% 25 Wizard Run 0 Options --------- Layout 0 ASCII 0 Keyboard 0 Movement Numpad Keybinds 0 Fullscreen 1 Font 18/Cog Map View 76x50 Zoom Use 0% Tactical HUD 0 Map Filters NONE Filters NONE Steam 1 RUN: 028cfa0e-3927-4f0e-97fe-55f2b84b516c